bitfinex-derivatives/quotes_ETHF0:USTF0_20250214
["timestamp","ask_amount","ask_price","bid_price","bid_amount"]
[1739502255562,2.94077,2695.1,2695.0,0.30236545]
[1739502258870,6.32607229,2695.1,2695.0,0.30236545]
[1739502259268,5.58410229,2695.1,2694.5,3.2078]
[1739502259468,0.74211,2694.6,2694.5,3.2078]
[1739502259765,1.649,2694.6,2694.2,0.5505]
[1739502259969,0.74217,2694.4,2694.2,0.5505]
[1739502260870,1.0806,2694.5,2694.2,0.5505]
[1739502261172,0.74219,2694.3,2694.1,3.2078]
[1739502261471,0.74217,2694.4,2694.1,3.2078]
[1739502261773,0.74217,2694.4,2694.2,0.74221]
[1739502261961,1.6313,2694.5,2694.2,0.74221]
[1739502262164,0.5379,2694.5,2694.4,0.74216]
[1739502262369,2.1869,2694.5,2694.4,0.74216]
[1739502262867,2.1869,2694.5,2694.1,3.5047]
[1739502263066,0.7422,2694.3,2694.1,4.24693]
[1739502263260,2.1869,2694.5,2694.1,4.24693]
[1739502263476,0.74218,2694.4,2694.2,0.74222]
[1739502263665,0.74218,2694.4,2694.1,4.24693]
[1739502263974,0.7422,2694.3,2694.1,4.24693]
[1739502264165,0.74218,2694.4,2694.1,4.24693]
[1739502264367,2.92906,2694.5,2694.2,0.74221]
[1739502264671,2.1869,2694.5,2694.3,0.74217]
[1739502264863,0.5657,2694.9,2694.4,0.581]
[1739502265066,3.2078,2695.1,2694.4,0.581]
[1739502265067,1.649,2694.7,2694.6,0.74209]
[1739502265266,2.07568033,2695.0,2694.5,1.1317]
[1739502265467,1.649,2695.0,2694.8,0.74204]
[1739502265666,5.59878,2695.1,2694.9,1.17]
[1739502265972,0.742,2695.0,2694.9,1.17]
[1739502266275,0.742,2695.0,2694.9,0.581]
[1739502267564,4.8568,2695.1,2694.9,0.581]
[1739502267764,3.2078,2695.1,2694.9,0.581]
[1739502267968,0.00556545,2695.4,2695.3,0.74192]
[1739502268473,0.00556545,2695.4,2695.3,3.94972]
[1739502271175,0.42651481,2695.9,2695.7,0.74178]
[1739502271377,0.42651481,2695.9,2695.8,1.1427]
[1739502271571,2.39071,2696.1,2695.8,1.1427]
[1739502272476,1.17376026,2696.2,2695.8,1.88447]
[1739502272775,1.17376026,2696.2,2695.8,2.45137]
[1739502274378,1.17376026,2696.2,2695.8,1.7096]
[1739502274379,0.43208026,2696.2,2695.8,1.7096]
[1739502274574,0.7417,2696.1,2695.8,1.7096]
[1739502274875,1.17377026,2696.2,2695.8,1.7096]
[1739502275076,1.17377026,2696.2,2695.8,2.45137]
[1739502275376,0.43208026,2696.2,2695.9,0.74174]
[1739502275572,0.00556545,2696.2,2695.8,1.7096]
[1739502275773,0.00556545,2696.2,2696.1,0.7417]
[1739502276576,0.5882,2696.8,2696.0,3.2078]
[1739502276772,6.10769378,2697.2,2696.6,3.2078]
[1739502277080,5.59821,2697.2,2696.8,0.74149]
[1739502277283,5.5982,2697.2,2696.8,0.74149]
[1739502277780,4.8568,2697.2,2696.7,1.7313]
[1739502278080,1.649,2697.2,2696.9,0.74147]
[1739502278280,0.74143,2697.1,2696.7,2.47282]
[1739502278585,1.649,2697.2,2696.9,0.74147]
[1739502279081,1.649,2697.2,2696.7,1.7313]
[1739502279383,0.74149,2696.9,2696.7,1.7313]
[1739502280286,0.7415,2696.8,2696.7,0.5963]
[1739502281485,0.74149,2696.9,2696.7,0.5963]
[1739502282081,5.14589378,2697.2,2696.7,0.5963]
[1739502282082,0.7415,2696.8,2696.7,0.5963]
[1739502282489,0.7415,2696.9,2696.7,0.5963]
[1739502282980,0.7415,2696.8,2696.7,0.5963]
[1739502283184,5.14589378,2697.2,2696.7,1.33781]
[1739502283383,0.74142,2697.1,2696.8,0.7415]
[1739502283578,1.649,2697.2,2696.7,0.5963]
[1739502283780,1.649,2697.2,2697.0,0.74144]
[1739502283981,1.649,2697.2,2696.7,0.5963]
[1739502284182,2.39041,2697.2,2697.0,0.2966]
[1739502285482,0.74142,2697.1,2697.0,0.2966]
[1739502286790,2.3904,2697.2,2697.0,1.03805]
[1739502287486,2.3904,2697.2,2697.0,0.2966]
[1739502288091,2.3904,2697.2,2697.0,1.03804]
[1739502288296,2.3904,2697.2,2697.0,0.2966]
[1739502289793,1.649,2697.2,2697.0,0.2966]
[1739502289993,0.74142,2697.1,2697.0,0.2966]
[1739502295402,1.648,2697.2,2697.0,0.2966]
[1739502295601,0.74142,2697.1,2697.0,0.2966]
[1739502295990,0.74544996,2697.1,2697.0,0.2966]
[1739502300508,0.74544996,2697.1,2697.0,0.8354]
[1739502300807,0.00402996,2697.1,2697.0,0.8354]
[1739502301004,0.00402996,2697.1,2697.0,1.57685]
[1739502303894,0.00556545,2697.3,2697.0,9.7714]
[1739502304095,0.00556545,2697.3,2697.2,3.94919]
[1739502304507,0.00556545,2697.3,2697.2,5.08739]
[1739502305102,0.00556545,2697.3,2697.2,4.346]
[1739502305500,0.00556545,2697.3,2697.0,3.4748]
[1739502305712,0.74142,2697.1,2697.0,3.4748]
[1739502305907,1.132,2697.2,2696.9,3.2078]
[1739502306107,0.00556545,2697.3,2696.9,3.2078]
[1739502306408,2.39394545,2697.3,2697.0,0.74145]
[1739502306613,1.65256545,2697.3,2697.1,0.5958]
[1739502306804,1.65256545,2697.3,2697.1,1.33721]
[1739502307316,1.65256545,2697.3,2697.2,0.74139]
[1739502307704,1.65256545,2697.3,2697.1,1.33721]
[1739502308212,1.65256545,2697.3,2697.2,0.74139]
[1739502309011,0.00556545,2697.3,2697.2,0.74139]
[1739502309306,0.00556545,2697.3,2697.1,0.5958]
[1739502309499,0.00556545,2697.3,2697.2,3.2078]
[1739502309702,0.00556545,2697.3,2697.2,3.94919]
[1739502309912,0.00556545,2697.3,2697.2,4.24579]
[1739502311306,2.2208,2697.9,2697.7,0.74126]
[1739502311707,3.94893,2698.2,2697.6,3.2078]
[1739502312002,0.42685781,2698.1,2697.9,0.74118]
[1739502312209,0.42685781,2698.1,2698.0,3.94897]
[1739502312404,0.00556545,2698.3,2698.1,0.74115]
[1739502313600,0.00556545,2698.3,2698.0,3.2078]
[1739502313601,0.00556545,2698.3,2698.2,0.74112]
[1739502313798,0.00556545,2698.3,2698.1,0.74114]
[1739502314210,0.00556545,2698.3,2698.0,3.2078]
[1739502314412,0.00556545,2698.3,2698.0,3.94896]
[1739502314711,0.00556545,2698.3,2698.1,0.74113]
[1739502315211,0.00556545,2698.3,2698.2,0.74112]
[1739502316211,0.00556545,2698.3,2698.1,0.74113]
[1739502316411,0.00556545,2698.3,2698.0,3.2078]
[1739502316614,0.74114,2698.2,2698.0,3.2078]
[1739502317111,0.00556545,2698.3,2698.0,3.2078]
[1739502317419,0.74667545,2698.3,2698.0,3.2078]
[1739502318115,0.00556545,2698.3,2698.0,3.2078]
[1739502318311,0.74665545,2698.3,2698.0,3.2078]
[1739502318814,0.74112,2698.2,2698.0,3.2078]
[1739502319007,0.74667545,2698.3,2698.0,3.2078]
[1739502319515,0.00556545,2698.3,2698.0,3.2078]
[1739502319715,0.00556545,2698.3,2698.1,0.74113]
[1739502321314,0.74665545,2698.3,2698.2,0.5947]
[1739502321519,0.00556545,2698.3,2698.2,0.5947]
[1739502322317,0.00556545,2698.3,2698.2,1.33582]
[1739502322906,0.74665545,2698.3,2698.2,0.5947]
[1739502323515,0.00556545,2698.3,2698.2,0.5947]
[1739502323717,0.00556545,2698.3,2698.2,1.33582]
[1739502325320,0.00556545,2698.3,2698.2,0.5947]
[1739502325519,0.74665545,2698.3,2698.2,0.5947]
[1739502326417,0.00556545,2698.3,2698.0,3.2078]
[1739502326718,0.74115,2698.1,2698.0,3.2078]
[1739502327014,1.7331,2698.2,2698.0,3.94897]
[1739502327218,1.1926,2698.2,2698.1,0.74115]
[1739502327610,1.1926,2698.2,2698.0,3.2078]
[1739502327822,0.74115,2698.1,2698.0,3.2078]
[1739502328316,1.93374,2698.2,2698.0,3.2078]
[1739502328509,1.1926,2698.2,2698.0,3.2078]
[1739502328820,1.1926,2698.2,2698.1,0.74115]
[1739502329920,1.1926,2698.2,2698.0,3.2078]
[1739502330116,0.74115,2698.1,2698.0,3.2078]
[1739502330519,0.74123,2697.8,2697.7,0.00556545]
[1739502332122,2.38723,2697.8,2697.7,0.00556545]
[1739502332724,2.93113,2697.8,2697.7,0.00556545]
[1739502333523,5.83102378,2697.8,2697.7,0.00556545]
[1739502333922,5.57440678,2697.8,2697.3,3.2078]
[1739502334223,0.74134,2697.4,2697.3,3.2078]
[1739502334719,1.30614,2697.4,2697.3,3.2078]
[1739502335123,0.5648,2697.4,2697.2,0.2966]
[1739502335322,2.97247,2697.3,2697.2,0.2966]
[1739502337024,3.03101091,2697.3,2697.2,0.2966]
[1739502337218,2.28964091,2697.3,2697.1,0.00556545]
[1739502337423,6.84908378,2697.2,2697.1,0.00556545]
[1739502338321,7.27521308,2697.2,2697.1,0.00556545]
[1739502339227,6.84908378,2697.2,2697.1,0.00556545]
[1739502339723,4.8548,2697.2,2697.1,0.20446545]
[1739502339923,5.59619,2697.2,2697.1,0.20446545]
[1739502346531,6.16759,2697.2,2697.1,0.20446545]
[1739502347827,0.74156,2696.6,2696.5,0.5604]
[1739502348029,4.54689378,2696.6,2696.2,3.2078]
[1739502348226,0.74166,2696.3,2696.1,0.74169]
[1739502348431,0.74166,2696.3,2696.1,0.5644]
[1739502349231,0.74165,2696.3,2696.0,3.94951]
[1739502349636,1.14236545,2696.5,2696.0,3.2078]
[1739502349830,0.00556545,2696.5,2696.0,3.2078]
[1739502350029,0.00556545,2696.5,2696.4,0.74161]
[1739502350629,0.00556545,2696.5,2696.4,2.40861]
[1739502351328,0.00556545,2696.5,2696.4,43.20861]
[1739502351533,1.647,2696.9,2696.4,42.467]
[1739502351837,1.647,2696.9,2696.8,0.7415]
[1739502352634,1.647,2696.9,2696.6,3.2078]
[1739502353232,0.7415,2696.8,2696.6,3.2078]
[1739502353829,0.74153,2696.8,2696.6,3.2078]
[1739502354028,0.74153,2696.8,2696.5,0.74157]
[1739502354733,0.74157,2696.6,2696.4,42.467]
[1739502354932,0.74154,2696.7,2696.4,2.4086]
[1739502356535,0.74154,2696.7,2696.5,0.74158]
[1739502356834,0.74153,2696.8,2696.5,0.74158]
[1739502358629,2.223,2696.9,2696.4,1.667]
[1739502358830,0.74154,2696.7,2696.5,0.74159]
[1739502361839,0.74158,2696.6,2696.4,2.4086]
[1739502362038,2.223,2696.9,2696.4,1.667]
[1739502362239,0.74154,2696.7,2696.5,0.74159]
[1739502362634,2.223,2696.9,2696.4,1.667]
[1739502362942,0.74153,2696.8,2696.6,0.74156]
[1739502364334,1.647,2696.9,2696.8,0.7415]
[1739502364944,1.647,2697.0,2696.6,3.2078]
[1739502365134,2.38846,2697.0,2696.8,0.74149]
[1739502365843,1.647,2697.0,2696.8,0.74149]
[1739502366041,2.38847,2697.0,2696.8,0.74149]
[1739502366536,1.647,2697.0,2696.6,3.2078]
[1739502366936,0.74153,2696.7,2696.6,3.2078]
[1739502367537,0.74153,2696.7,2696.5,0.74158]
[1739502367844,0.74156,2696.6,2696.4,2.4086]
[1739502368940,0.5571,2696.7,2696.4,1.667]
[1739502368941,0.74159,2696.5,2696.4,1.667]
[1739502369141,0.5571,2696.7,2696.0,3.2078]
[1739502369348,3.2078,2696.5,2696.0,5.66091]
[1739502369544,0.74165,2696.3,2696.0,5.66091]
[1739502369738,0.74163,2696.4,2696.1,0.74169]
[1739502370043,4.8548,2696.5,2696.0,4.9192]
[1739502370234,0.74162,2696.4,2696.1,0.7417]
[1739502370431,0.74166,2696.3,2696.0,5.6609]
[1739502370636,4.8548,2696.5,2696.0,4.9192]
[1739502370844,4.8548,2696.5,2696.0,2.4531]
[1739502371044,0.74166,2696.3,2696.0,1.7114]
[1739502371245,0.74166,2696.3,2696.1,0.74169]
[1739502371543,4.8548,2696.5,2696.0,1.7114]
[1739502371842,0.7417,2696.1,2696.0,1.7114]
[1739502372433,0.74172,2696.0,2695.9,0.00556545]
[1739502372639,2.92982,2696.0,2695.9,0.00556545]
[1739502373033,2.1881,2696.0,2695.9,0.00556545]
[1739502373541,1.647,2696.0,2695.9,0.00556545]
[1739502374041,0.42664684,2696.4,2696.3,0.74164]
[1739502374541,1.647,2696.7,2696.4,0.7416]
[1739502374742,2.38854,2696.7,2696.5,1.1225]
[1739502374934,2.38854,2696.7,2696.5,42.485]
[1739502375140,1.647,2696.7,2696.5,2.42658]
[1739502376441,0.5602,2697.0,2696.7,0.74152]
[1739502376648,2.2072,2697.0,2696.7,0.74152]
[1739502376848,2.94865,2697.0,2696.6,3.2078]
[1739502377147,2.94865,2697.0,2696.6,3.94935]
[1739502377740,2.2072,2697.0,2696.6,3.94935]
[1739502378047,2.94866,2697.0,2696.7,0.74153]
[1739502378546,2.2072,2697.0,2696.7,0.74153]
[1739502378734,2.94866,2697.0,2696.6,3.94935]
[1739502378938,0.5742,2696.9,2696.6,3.94935]
[1739502379240,0.5742,2696.9,2696.7,0.74152]
[1739502380147,1.31568,2696.9,2696.6,3.94934]
[1739502380448,0.5742,2696.9,2696.6,3.2078]
[1739502380645,0.5742,2696.9,2696.7,0.74152]
[1739502383344,1.31568,2696.9,2696.6,3.94934]
[1739502383950,0.74153,2696.8,2696.6,3.2078]
[1739502384743,0.74153,2696.8,2696.6,3.94936]
[1739502384950,0.5742,2696.9,2696.6,3.2078]
[1739502385152,0.5742,2696.9,2696.8,0.7415]
[1739502388054,0.74152,2696.8,2696.6,3.94934]
[1739502388354,0.5742,2696.9,2696.7,0.74153]
[1739502388548,1.31569,2696.9,2696.7,0.74153]
[1739502389546,0.5742,2696.9,2696.6,3.94934]
[1739502389851,0.05846392,2696.8,2696.0,3.2078]
[1739502390047,2.89989378,2696.6,2696.0,3.2078]
[1739502390253,2.9454,2696.5,2696.2,0.74166]
[1739502390648,2.9454,2696.5,2696.1,0.74167]
[1739502390649,0.74162,2696.4,2696.1,0.74167]
[1739502390958,2.2038,2696.5,2696.0,3.2078]
[1739502391150,1.647,2696.5,2696.4,0.74161]
[1739502391354,1.647,2696.5,2696.0,3.2078]
[1739502391552,1.647,2696.5,2696.3,0.74163]
[1739502391754,1.647,2696.5,2696.4,1.1629]
[1739502392253,2.38859,2696.5,2696.4,1.1629]
[1739502393255,2.38859,2696.5,2696.4,0.5942]
[1739502393861,1.647,2696.5,2696.4,0.5942]
[1739502394651,1.647,2696.5,2696.4,1.33581]
[1739502395450,0.5485,2696.7,2696.4,0.5942]
[1739502395652,0.74159,2696.5,2696.4,0.5942]
[1739502396053,0.5485,2696.7,2696.1,1.29619]
[1739502396261,0.5485,2696.7,2696.1,1.86289]
[1739502396557,0.74163,2696.4,2696.1,1.86289]
[1739502396757,0.74161,2696.5,2696.2,0.74166]
[1739502396958,0.74158,2696.6,2696.1,1.1212]
[1739502397161,0.74158,2696.6,2696.3,0.74161]
[1739502398260,0.74158,2696.6,2696.4,0.7416]
[1739502399557,1.29005,2696.7,2696.3,3.2078]
[1739502399762,3.2078,2696.9,2696.3,3.2078]
[1739502399962,3.94929,2696.9,2696.4,0.5648]
[1739502400163,3.94929,2696.9,2696.7,0.74153]
[1739502400756,0.74149,2696.9,2696.7,0.74153]
[1739502401964,0.00556545,2697.1,2697.0,0.74145]
[1739502402655,0.00556545,2697.1,2697.0,1.1461]
[1739502402857,0.74698545,2697.1,2697.0,0.5724]
[1739502403161,0.74153,2696.7,2696.6,0.5874]
[1739502403461,0.74159,2696.5,2696.4,0.5724]
[1739502403766,0.74164,2696.3,2696.2,0.5947]
[1739502403955,2.2164,2696.4,2696.0,0.5702]
[1739502404151,0.7417,2696.1,2696.0,0.5702]
[1739502404767,0.5392,2696.2,2695.9,0.00556545]
[1739502405058,0.74172,2696.0,2695.9,0.00556545]
[1739502405259,2.89989378,2696.0,2695.2,3.2078]
[1739502405559,0.74185,2695.6,2695.2,3.2078]
[1739502405758,0.74187,2695.5,2695.1,41.3702]
[1739502406063,0.5392,2695.5,2695.1,41.3702]
[1739502406263,1.28109,2695.5,2695.1,0.5702]
[1739502406460,1.28108,2695.5,2695.1,0.5702]
[1739502406659,3.747,2695.5,2695.1,0.5702]
[1739502407056,0.74193,2695.3,2695.1,0.5702]
[1739502407564,3.747,2695.5,2695.1,0.5702]
[1739502407754,0.74193,2695.3,2695.1,0.5702]
[1739502408556,0.5457,2695.4,2695.1,0.5702]
[1739502408863,2.1927,2695.4,2695.1,0.5702]
[1739502409859,1.647,2695.4,2695.1,1.31215]
[1739502410064,1.647,2695.4,2695.1,0.5702]
[1739502410266,1.647,2695.4,2695.1,1.31217]
[1739502410464,1.647,2695.4,2695.1,0.5702]
[1739502410670,1.647,2695.4,2695.2,0.74194]
[1739502411262,1.647,2695.4,2695.1,0.5702]
[1739502411460,3.747,2695.5,2695.2,0.74194]
[1739502411664,0.00556545,2695.6,2695.5,0.74186]
[1739502411969,0.00556545,2695.6,2695.5,3.94966]
[1739502412464,0.00556545,2695.6,2695.5,3.2078]
[1739502413164,0.00556545,2695.6,2695.5,9.94966]
[1739502413362,0.5548,2696.3,2695.5,9.2078]
[1739502413671,1.647,2696.5,2696.3,0.74163]
[1739502413865,1.647,2696.5,2696.3,0.585]
[1739502414066,1.647,2696.5,2696.4,0.74161]
[1739502414477,1.647,2696.5,2696.3,0.585]
[1739502414663,1.647,2696.5,2696.3,1.32663]
[1739502414863,1.647,2696.5,2696.4,0.74161]
[1739502415372,1.647,2696.5,2696.3,0.585]
[1739502415667,1.647,2696.5,2696.4,0.74161]
[1739502415869,1.647,2696.5,2696.3,0.585]
[1739502416263,1.647,2696.5,2696.4,0.74161]
[1739502417067,0.00556545,2696.7,2696.6,0.74156]
[1739502417272,0.00556545,2696.7,2696.6,3.94936]
[1739502420171,0.00556545,2696.7,2696.6,6.84925378]
[1739502421463,6.10769378,2697.9,2696.6,12.10769378]
[1739502421662,3.56950193,2697.8,2697.3,3.2078]
[1739502421865,1.86404,2697.8,2697.3,3.2078]
[1739502422068,1.647,2697.7,2697.3,3.2078]
[1739502422367,0.5833,2697.8,2697.7,0.74126]
[1739502422571,0.00556545,2698.0,2697.6,3.2078]
[1739502422770,0.00556545,2698.0,2697.9,0.74119]
[1739502423067,0.00556545,2698.0,2697.8,0.74121]
[1739502423272,0.00556545,2698.0,2697.8,0.74122]
[1739502423475,0.00556545,2698.0,2697.8,0.74123]
[1739502423775,0.00556545,2698.0,2697.7,0.571]
[1739502423976,0.00556545,2698.0,2697.9,0.7412]
[1739502424178,0.00556545,2698.0,2697.7,0.571]
[1739502424378,0.00556545,2698.0,2697.8,0.74122]
[1739502424971,0.00556545,2698.0,2697.7,0.571]
[1739502425170,0.00556545,2698.0,2697.7,1.31225]
[1739502425370,0.00556545,2698.0,2697.7,0.571]
[1739502425576,0.00556545,2698.0,2697.9,0.7412]
[1739502426076,0.00556545,2698.0,2697.8,0.74121]
[1739502426667,0.00556545,2698.0,2697.9,0.7412]
[1739502427277,0.00556545,2698.0,2697.9,3.949]
[1739502427979,0.00556545,2698.0,2697.9,3.2078]
[1739502429490,0.00556545,2698.0,2697.9,3.949]
[1739502438095,0.00556545,2698.0,2697.9,3.2078]
[1739502438284,0.55476545,2698.0,2697.9,3.2078]
[1739502439286,0.55476545,2698.0,2697.7,0.571]
[1739502439482,0.5496,2697.9,2697.6,4.49707]
[1739502439683,0.5496,2697.9,2697.6,3.94907]
[1739502440087,0.5496,2697.9,2697.6,3.2078]
[1739502440389,0.5496,2697.9,2697.6,3.94907]
[1739502441186,1.29081,2697.9,2697.6,3.94907]
[1739502441688,0.74126,2697.8,2697.6,3.2078]
[1739502442083,0.5496,2697.9,2697.6,3.2078]
[1739502442289,0.74126,2697.7,2697.6,3.2078]
[1739502442690,0.5496,2697.9,2697.7,0.74125]
[1739502443399,1.2908,2697.9,2697.7,0.74125]
[1739502443693,1.65056545,2698.0,2697.8,0.74122]
[1739502443894,1.65056545,2698.0,2697.6,3.2078]
[1739502444091,0.74121,2697.9,2697.6,3.94907]
[1739502444295,1.65056545,2698.0,2697.6,3.2078]
[1739502444508,1.65056545,2698.0,2697.9,0.7412]
[1739502444694,1.65056545,2698.0,2697.6,3.2078]
[1739502444889,1.65056545,2698.0,2697.8,0.74122]
[1739502445695,1.65056545,2698.0,2697.6,3.2078]
[1739502445890,1.65056545,2698.0,2697.8,0.74122]
[1739502446696,1.65056545,2698.0,2697.9,0.7412]
[1739502447097,0.00556545,2698.0,2697.9,3.949]
[1739502447599,0.00556545,2698.0,2697.9,3.2078]
[1739502448096,0.00556545,2698.0,2697.9,3.949]
[1739502454292,1.00475674,2698.7,2697.9,9.2078]
[1739502454498,1.1646,2698.7,2698.6,3.94881]
[1739502454799,1.1646,2698.7,2698.6,3.2078]
[1739502456407,0.00368553,2698.9,2698.6,3.2078]
[1739502456897,0.74098,2698.7,2698.6,3.2078]
[1739502457101,0.74104,2698.5,2698.4,0.00556545]
[1739502457705,1.84514,2698.5,2698.4,0.00556545]
[1739502459403,3.49014,2698.5,2698.4,0.00556545]
[1739502459598,6.39003378,2698.5,2698.4,0.00556545]
[1739502460502,9.59783378,2698.5,2698.4,0.00556545]
[1739502460711,0.74122,2697.9,2697.7,3.7651]
[1739502461100,10.16784378,2698.5,2697.7,3.7651]
[1739502461101,0.74123,2697.8,2697.7,3.2078]
[1739502462310,0.5735,2697.9,2697.7,3.2078]
[1739502462510,0.74123,2697.8,2697.7,3.2078]
[1739502463903,0.551,2697.8,2697.7,3.2078]
[1739502464710,0.551,2697.8,2697.7,3.94906]
[1739502469116,0.42660869,2698.3,2697.7,3.2078]
[1739502469323,0.42660869,2698.3,2698.1,0.74112]
[1739502469521,1.31247,2698.4,2698.1,0.74112]
[1739502470221,1.73900861,2698.4,2698.1,0.74112]
[1739502470615,0.99793861,2698.4,2697.9,0.5947]
[1739502470816,0.5714,2698.4,2697.9,0.5947]
[1739502471019,0.7411,2698.3,2698.0,0.74116]
[1739502471825,0.7411,2698.3,2698.1,0.74114]
[1739502472413,1.31248,2698.4,2698.1,0.74114]
[1739502472617,1.31248,2698.4,2698.0,3.2078]
[1739502472823,1.31248,2698.4,2698.2,0.74111]
[1739502475324,0.5714,2698.4,2698.0,3.2078]
[1739502475619,0.5714,2698.4,2698.3,0.74109]
[1739502475814,0.5714,2698.4,2698.3,3.2078]
[1739502476016,1.31246,2698.4,2698.3,3.2078]
[1739502476418,0.74113,2698.2,2698.0,3.94896]
[1739502476623,0.74111,2698.3,2698.1,0.74115]
[1739502476818,0.5714,2698.4,2698.1,0.74115]
[1739502477020,1.31248,2698.4,2698.1,0.74115]
[1739502477222,0.5714,2698.4,2698.1,0.74115]
[1739502477414,0.74115,2698.1,2698.0,3.2078]
[1739502478025,0.5714,2698.4,2698.0,3.2078]
[1739502478226,0.74109,2698.3,2698.0,3.94896]
[1739502478629,0.74112,2698.2,2698.0,3.94896]
[1739502479125,0.74112,2698.2,2698.0,3.2078]
[1739502480231,0.74115,2698.1,2698.0,3.2078]
[1739502480724,0.7412,2697.9,2697.8,1.0959]
[1739502481028,1.85274,2698.3,2697.7,3.2078]
[1739502481029,0.74123,2697.8,2697.7,3.2078]
[1739502481530,0.74128,2697.7,2697.5,0.56276545]
[1739502481825,0.74123,2697.8,2697.5,1.30406545]
[1739502482127,1.183,2697.9,2697.7,3.94904]
[1739502482727,1.92422,2697.9,2697.7,3.2078]
[1739502483129,1.92422,2697.9,2697.7,3.7846]
[1739502485019,0.5964,2697.9,2697.7,3.7846]
[1739502485225,0.42643203,2698.2,2697.7,3.7846]
[1739502485226,1.645,2698.1,2697.9,0.74119]
[1739502485429,1.645,2698.1,2697.8,0.5528]
[1739502485632,0.7412,2697.9,2697.8,0.5528]
[1739502486329,0.74119,2698.0,2697.8,0.5528]
[1739502488626,2.38616,2698.1,2697.8,1.29401]
[1739502488828,1.645,2698.1,2697.8,0.5528]
[1739502489029,1.645,2698.1,2698.0,3.2078]
[1739502489429,1.645,2698.1,2698.0,3.94897]
[1739502490931,0.5922,2698.2,2698.0,3.94897]
[1739502491131,0.5922,2698.2,2698.1,0.5377]
[1739502491525,1.33332,2698.2,2698.1,0.5377]
[1739502496235,0.74115,2698.1,2698.0,3.2078]
[1739502497844,0.5922,2698.2,2697.8,0.5528]
[1739502498143,0.74123,2697.8,2697.7,3.94906]
[1739502498337,0.74122,2697.9,2697.7,3.94906]
[1739502498546,0.5836,2698.1,2697.7,3.94906]
[1739502498739,0.74117,2698.0,2697.7,3.2078]
[1739502498938,0.74117,2698.0,2697.8,0.74123]
[1739502499445,0.5836,2698.1,2697.8,0.74123]
[1739502499651,0.5836,2698.1,2697.7,3.2078]
[1739502499846,0.74122,2697.9,2697.7,3.94904]
[1739502500143,0.5836,2698.1,2697.7,3.2078]
[1739502500543,0.74123,2697.8,2697.7,3.2078]
[1739502501245,0.74119,2698.0,2697.8,0.74121]
[1739502501547,0.74117,2698.0,2697.8,0.74121]
[1739502501742,0.7412,2697.9,2697.8,0.74121]
[1739502501942,0.74118,2698.0,2697.8,0.74121]
[1739502502345,0.7412,2697.9,2697.8,0.74122]
[1739502502553,0.7412,2697.9,2697.7,3.94904]
[1739502502741,0.5836,2698.1,2697.7,3.2078]
[1739502503046,0.74123,2697.8,2697.7,3.2078]
[1739502503247,2.38523,2697.8,2697.7,3.2078]
[1739502503846,1.644,2697.8,2697.6,0.5604]
[1739502504049,1.1652,2697.7,2697.5,0.00556545]
[1739502504248,0.74128,2697.6,2697.5,0.00556545]
[1739502504448,1.30748,2697.6,2697.5,0.00556545]
[1739502504844,1.73452261,2697.6,2697.5,0.00556545]
[1739502505950,4.63441639,2697.6,2697.5,0.00556545]
[1739502506152,4.9374862,2697.6,2697.5,0.00556545]
[1739502506952,4.99603216,2697.6,2697.5,0.00556545]
[1739502507250,0.74142,2697.1,2697.0,3.7611]
[1739502507750,3.2078,2697.4,2697.0,3.7611]
[1739502508052,2.38538,2697.3,2697.0,4.50254]
[1739502508255,2.2129,2697.3,2697.0,3.7611]
[1739502508450,0.7414,2697.2,2697.0,3.7611]
[1739502508648,2.2129,2697.3,2697.0,3.7611]
[1739502508849,0.74142,2697.1,2697.0,3.7611]
[1739502509047,5.11279378,2697.3,2696.9,0.00556545]
[1739502509257,0.74145,2697.0,2696.9,0.00556545]
[1739502516459,3.64134378,2697.0,2696.9,0.00556545]
[1739502517360,3.69990437,2697.0,2696.9,0.00556545]
[1739502518558,3.69990449,2697.0,2696.9,0.00556545]
[1739502518758,2.95845449,2697.0,2696.4,3.2078]
[1739502518962,0.5937,2696.9,2696.4,3.2078]
[1739502519262,0.74157,2696.6,2696.4,3.2078]
[1739502519458,2.38553,2696.8,2696.5,0.74157]
[1739502519665,2.38553,2696.8,2696.5,0.5781]
[1739502519862,2.38553,2696.8,2696.6,1.86064]
[1739502520171,0.74153,2696.7,2696.6,1.1191]
[1739502520762,0.74153,2696.7,2696.6,0.5733]
[1739502528567,0.74158,2696.6,2696.4,0.00556545]
[1739502528764,1.644,2696.8,2696.4,1.12566545]
[1739502528969,2.38553,2696.8,2696.5,0.74157]
[1739502529166,2.38553,2696.8,2696.6,0.555]
[1739502529468,0.74153,2696.7,2696.5,0.74157]
[1739502529668,1.644,2696.8,2696.6,0.5532]
[1739502529875,2.38552,2696.8,2696.6,1.29475]
[1739502530073,2.38552,2696.8,2696.4,1.12566545]
[1739502530074,1.644,2696.8,2696.4,0.00556545]
[1739502530278,0.74159,2696.5,2696.4,0.00556545]
[1739502532175,1.29889,2696.5,2696.4,0.00556545]
[1739502532372,0.61587252,2696.5,2695.8,3.2078]
[1739502532583,0.74181,2695.7,2695.6,1.7038]
[1739502533967,1.644,2695.8,2695.6,1.7038]
[1739502534481,0.74181,2695.7,2695.6,1.7038]
[1739502534876,1.644,2695.8,2695.4,0.00556545]
[1739502535072,0.74186,2695.5,2695.4,0.00556545]
[1739502535276,0.74183,2695.7,2695.4,0.00556545]
[1739502535679,1.645,2695.6,2695.5,0.74184]
[1739502535878,1.645,2695.6,2695.4,0.00556545]
[1739502536181,1.645,2695.7,2695.5,3.94965]